[Event "*** Titled Tuesday Blitz"]
[Site "Chess.com"]
[Date "2021.02.02"]
[Round "1"]
[White "anantone"]
[Black "The_filthy"]
[Result "1-0"]
[WhiteElo "2549"]
[BlackElo "2233"]
[TimeControl "180+1"]
[EndTime "10:06:42 PST"]
[Termination "anantone won by resignation"]

1. e4 {[%clk 0:02:56.2]} 1... e6 {[%clk 0:02:59.8]} 2. d4 {[%clk 0:02:54]} 2...
d5 {[%clk 0:03:00.2]} 3. Nc3 {[%clk 0:02:49.5]} 3... Nf6 {[%clk 0:03:00.3]} 4.
Bg5 {[%clk 0:02:48.8]} 4... Be7 {[%clk 0:03:00.1]} 5. e5 {[%clk 0:02:48.1]} 5...
Nfd7 {[%clk 0:03:00.1]} 6. h4 {[%clk 0:02:48.7]} 6... f6 {[%clk 0:02:58.4]} 7.
exf6 {[%clk 0:02:47.4]} 7... Nxf6 {[%clk 0:02:58.2]} 8. Bd3 {[%clk 0:02:46.7]}
8... c5 {[%clk 0:02:55.5]} 9. dxc5 {[%clk 0:02:45.6]} 9... Nc6 {[%clk
0:02:54.8]} 10. Nf3 {[%clk 0:02:45.8]} 10... Bxc5 {[%clk 0:02:52.1]} 11. Qe2
{[%clk 0:02:46.1]} 11... O-O {[%clk 0:02:36.9]} 12. O-O-O {[%clk 0:02:32.4]}
12... Bd7 {[%clk 0:02:20.8]} 13. Kb1 {[%clk 0:01:35.8]} 13... Bb4 {[%clk
0:01:57.4]} 14. Nb5 {[%clk 0:01:31.2]} 14... a6 {[%clk 0:01:53.7]} 15. Nbd4
{[%clk 0:01:30]} 15... Re8 {[%clk 0:01:51.1]} 16. Nxc6 {[%clk 0:01:28.7]} 16...
bxc6 {[%clk 0:01:51.1]} 17. Ne5 {[%clk 0:01:27.6]} 17... Rb8 {[%clk 0:01:37.5]}
18. Ka1 {[%clk 0:01:27.2]} 18... Be7 {[%clk 0:01:16.3]} 19. c3 {[%clk 0:01:26]}
19... c5 {[%clk 0:01:06.4]} 20. Bb1 {[%clk 0:01:25.5]} 20... c4 {[%clk
0:01:01.9]} 21. Qc2 {[%clk 0:01:25.1]} 21... Ne4 {[%clk 0:01:01]} 22. f3 {[%clk
0:01:19.2]} 22... Qa5 {[%clk 0:00:55]} 23. fxe4 {[%clk 0:01:14.8]} 23... Ba4
{[%clk 0:00:54.5]} 24. Qd2 {[%clk 0:01:08.5]} 24... Bf8 {[%clk 0:00:36.6]} 25.
exd5 {[%clk 0:01:07.3]} 25... Bb3 {[%clk 0:00:34.7]} 26. Rhf1 {[%clk 0:00:58.2]}
26... Bxd1 {[%clk 0:00:18.8]} 27. Qxd1 {[%clk 0:00:58.2]} 27... Rxb2 {[%clk
0:00:16.7]} 28. Kxb2 {[%clk 0:00:54]} 28... Ba3+ {[%clk 0:00:08.6]} 29. Kc2
{[%clk 0:00:53.3]} 29... exd5 {[%clk 0:00:06.5]} 30. Qf3 {[%clk 0:00:40.5]}
30... Qa4+ {[%clk 0:00:05.3]} 31. Kd2 {[%clk 0:00:39.3]} 31... Rf8 {[%clk
0:00:04.4]} 32. Qxd5+ {[%clk 0:00:36.9]} 32... Kh8 {[%clk 0:00:04.7]} 33. Rxf8+
{[%clk 0:00:36.7]} 33... Bxf8 {[%clk 0:00:03.9]} 34. Nf7+ {[%clk 0:00:37.2]} 1-0

[Event "*** Titled Tuesday Blitz"]
[Site "Chess.com"]
[Date "2021.02.02"]
[Round "1"]
[White "Grimlock_Glasgow"]
[Black "Joseacorrea"]
[Result "1-0"]
[WhiteElo "2494"]
[BlackElo "2023"]
[TimeControl "180+1"]
[EndTime "10:06:42 PST"]
[Termination "Grimlock_Glasgow won on time"]

1. e4 {[%clk 0:03:00.6]} 1... c5 {[%clk 0:02:56.7]} 2. Nc3 {[%clk 0:02:59.7]}
2... Nc6 {[%clk 0:02:56.5]} 3. Bb5 {[%clk 0:02:59.3]} 3... Nd4 {[%clk
0:02:54.6]} 4. Nf3 {[%clk 0:02:59.1]} 4... Nxb5 {[%clk 0:02:54.3]} 5. Nxb5
{[%clk 0:03:00]} 5... a6 {[%clk 0:02:54.6]} 6. Nc3 {[%clk 0:02:59.7]} 6... b5
{[%clk 0:02:48.9]} 7. d4 {[%clk 0:02:56.7]} 7... cxd4 {[%clk 0:02:48.8]} 8. Qxd4
{[%clk 0:02:57.6]} 8... Bb7 {[%clk 0:02:49]} 9. a4 {[%clk 0:02:48.9]} 9... Bc6
{[%clk 0:02:24.1]} 10. O-O {[%clk 0:02:39.6]} 10... e6 {[%clk 0:02:14.6]} 11.
Bf4 {[%clk 0:02:21.1]} 11... b4 {[%clk 0:02:09.7]} 12. Nd5 {[%clk 0:02:20.6]}
12... Bxd5 {[%clk 0:01:47.3]} 13. exd5 {[%clk 0:02:21.5]} 13... Nf6 {[%clk
0:01:47.3]} 14. Rfe1 {[%clk 0:02:13.3]} 14... Rc8 {[%clk 0:01:38.7]} 15. Rad1
{[%clk 0:02:05.3]} 15... Bc5 {[%clk 0:01:37.8]} 16. Qd3 {[%clk 0:01:52.6]} 16...
O-O {[%clk 0:01:36.1]} 17. dxe6 {[%clk 0:01:46.6]} 17... dxe6 {[%clk 0:01:20.8]}
18. Qxa6 {[%clk 0:01:38.5]} 18... Qb6 {[%clk 0:01:15.5]} 19. Qxb6 {[%clk
0:01:25.9]} 19... Bxb6 {[%clk 0:01:16.4]} 20. Bd6 {[%clk 0:01:09.2]} 20... Rfd8
{[%clk 0:00:36.6]} 21. Bxb4 {[%clk 0:00:49.8]} 21... Rxd1 {[%clk 0:00:36.4]} 22.
Rxd1 {[%clk 0:00:50.7]} 22... Rxc2 {[%clk 0:00:36.4]} 23. a5 {[%clk 0:00:31.5]}
23... Bxf2+ {[%clk 0:00:26.5]} 24. Kf1 {[%clk 0:00:31.5]} 24... Nd5 {[%clk
0:00:24.2]} 25. Rd2 {[%clk 0:00:21]} 1-0

[Event "*** Titled Tuesday Blitz"]
[Site "Chess.com"]
[Date "2021.02.02"]
[Round "1"]
[White "JoachimMouhamad"]
[Black "dozer80"]
[Result "1-0"]
[WhiteElo "2318"]
[BlackElo "2587"]
[TimeControl "180+1"]
[EndTime "10:06:43 PST"]
[Termination "JoachimMouhamad won by resignation"]

1. e4 {[%clk 0:03:00.9]} 1... c5 {[%clk 0:02:59.2]} 2. Nf3 {[%clk 0:02:59.3]}
2... e6 {[%clk 0:02:58.2]} 3. d4 {[%clk 0:02:59.5]} 3... cxd4 {[%clk 0:02:59.1]}
4. Nxd4 {[%clk 0:03:00.2]} 4... Nc6 {[%clk 0:02:59.3]} 5. Nc3 {[%clk 0:03:00.5]}
5... Qc7 {[%clk 0:02:59.3]} 6. Be3 {[%clk 0:03:00.2]} 6... a6 {[%clk 0:02:58.7]}
7. Qd2 {[%clk 0:02:57.2]} 7... Nf6 {[%clk 0:02:57]} 8. O-O-O {[%clk 0:02:57.2]}
8... b5 {[%clk 0:02:57.2]} 9. Nxc6 {[%clk 0:02:56.4]} 9... dxc6 {[%clk
0:02:56.5]} 10. f3 {[%clk 0:02:53.9]} 10... e5 {[%clk 0:02:51.4]} 11. g4 {[%clk
0:02:45.6]} 11... Be6 {[%clk 0:02:47.6]} 12. h4 {[%clk 0:02:42.2]} 12... Nd7
{[%clk 0:02:14.1]} 13. Bh3 {[%clk 0:02:36.8]} 13... Nb6 {[%clk 0:02:10.8]} 14.
Bxb6 {[%clk 0:02:16]} 14... Qxb6 {[%clk 0:02:08.7]} 15. g5 {[%clk 0:02:16.1]}
15... Bxh3 {[%clk 0:02:04.3]} 16. Rxh3 {[%clk 0:02:16.2]} 16... Ra7 {[%clk
0:01:48.6]} 17. h5 {[%clk 0:02:07.1]} 17... Bc5 {[%clk 0:01:45.9]} 18. Kb1
{[%clk 0:01:58.6]} 18... Ke7 {[%clk 0:01:05.2]} 19. Qh2 {[%clk 0:01:53.2]} 19...
Qc7 {[%clk 0:01:00.5]} 20. g6 {[%clk 0:01:31.5]} 20... f6 {[%clk 0:00:57.4]} 21.
Ne2 {[%clk 0:01:24.7]} 21... Raa8 {[%clk 0:00:44.2]} 22. Ng3 {[%clk 0:01:23.2]}
22... Rad8 {[%clk 0:00:42.5]} 23. Nf5+ {[%clk 0:01:23.2]} 23... Ke6 {[%clk
0:00:40.9]} 24. Rc1 {[%clk 0:01:07]} 24... a5 {[%clk 0:00:22.8]} 25. Qg2 {[%clk
0:01:05.9]} 25... hxg6 {[%clk 0:00:21.1]} 26. hxg6 {[%clk 0:01:04.3]} 26... a4
{[%clk 0:00:20.6]} 27. Rxh8 {[%clk 0:00:54.7]} 27... Rxh8 {[%clk 0:00:19.5]} 28.
Qg4 {[%clk 0:00:55]} 28... Qd7 {[%clk 0:00:19]} 29. Nxg7+ {[%clk 0:00:47.9]}
29... Kd6 {[%clk 0:00:16.6]} 30. Rd1+ {[%clk 0:00:45.9]} 30... Bd4 {[%clk
0:00:15.9]} 31. Qxd7+ {[%clk 0:00:42.3]} 31... Kxd7 {[%clk 0:00:16.8]} 32. c3
{[%clk 0:00:42.3]} 32... c5 {[%clk 0:00:17.5]} 33. cxd4 {[%clk 0:00:41.9]} 33...
cxd4 {[%clk 0:00:18.4]} 34. Nf5 {[%clk 0:00:42.5]} 34... Rg8 {[%clk 0:00:18.5]}
35. g7 {[%clk 0:00:42.8]} 35... Ke6 {[%clk 0:00:18.7]} 36. Kc2 {[%clk
0:00:42.6]} 36... Rc8+ {[%clk 0:00:18.7]} 37. Kd3 {[%clk 0:00:42.5]} 37... b4
{[%clk 0:00:19.3]} 38. Rg1 {[%clk 0:00:42.2]} 38... a3 {[%clk 0:00:19.8]} 39.
bxa3 {[%clk 0:00:41.4]} 39... Rc3+ {[%clk 0:00:18.5]} 40. Kd2 {[%clk 0:00:41.8]}
1-0

[Event "*** Titled Tuesday Blitz"]
[Site "Chess.com"]
[Date "2021.02.02"]
[Round "1"]
[White "GMKrikor"]
[Black "shaheus"]
[Result "1-0"]
[WhiteElo "2810"]
[BlackElo "2417"]
[TimeControl "180+1"]
[EndTime "10:06:48 PST"]
[Termination "GMKrikor won on time"]

1. Nf3 {[%clk 0:03:00.2]} 1... d6 {[%clk 0:02:59.8]} 2. d4 {[%clk 0:02:59.6]}
2... g6 {[%clk 0:03:00.3]} 3. c4 {[%clk 0:02:58.9]} 3... Bg7 {[%clk 0:03:00.6]}
4. e4 {[%clk 0:02:56.5]} 4... Nf6 {[%clk 0:03:00.5]} 5. Nc3 {[%clk 0:02:56.3]}
5... O-O {[%clk 0:03:00.5]} 6. h3 {[%clk 0:02:56.7]} 6... c6 {[%clk 0:02:57.6]}
7. Be3 {[%clk 0:02:56.2]} 7... a6 {[%clk 0:02:57.8]} 8. Bd3 {[%clk 0:02:54.2]}
8... b5 {[%clk 0:02:57.6]} 9. O-O {[%clk 0:02:54.5]} 9... Bb7 {[%clk 0:02:55.8]}
10. Re1 {[%clk 0:02:49.1]} 10... b4 {[%clk 0:02:23.2]} 11. Na4 {[%clk
0:02:43.3]} 11... Nfd7 {[%clk 0:02:12.4]} 12. c5 {[%clk 0:02:33.7]} 12... a5
{[%clk 0:02:07.7]} 13. Rc1 {[%clk 0:02:27.6]} 13... dxc5 {[%clk 0:01:51.4]} 14.
dxc5 {[%clk 0:02:25.2]} 14... Ba6 {[%clk 0:01:47.4]} 15. b3 {[%clk 0:02:01.9]}
15... Bxd3 {[%clk 0:01:28.5]} 16. Qxd3 {[%clk 0:02:02.8]} 16... Ne5 {[%clk
0:01:28.4]} 17. Nxe5 {[%clk 0:02:00.5]} 17... Bxe5 {[%clk 0:01:26.1]} 18. Qc4
{[%clk 0:01:37.4]} 18... Qc7 {[%clk 0:01:15.7]} 19. Nb6 {[%clk 0:01:30.8]} 19...
Ra7 {[%clk 0:01:12.2]} 20. Rcd1 {[%clk 0:01:30.8]} 20... Rd8 {[%clk 0:01:00.8]}
21. Kf1 {[%clk 0:00:55]} 21... Bc3 {[%clk 0:00:44.7]} 22. Rxd8+ {[%clk
0:00:48.2]} 22... Qxd8 {[%clk 0:00:43.2]} 23. Rc1 {[%clk 0:00:46.7]} 23... e5
{[%clk 0:00:18.6]} 24. g3 {[%clk 0:00:44.4]} 24... Kg7 {[%clk 0:00:13.4]} 25.
Kg2 {[%clk 0:00:43.3]} 25... h6 {[%clk 0:00:12.8]} 26. Qe2 {[%clk 0:00:38.8]}
26... Re7 {[%clk 0:00:11.1]} 27. Rd1 {[%clk 0:00:38.1]} 27... Qc7 {[%clk
0:00:10.7]} 28. Qd3 {[%clk 0:00:31.2]} 28... Bd4 {[%clk 0:00:02.6]} 29. Bxd4
{[%clk 0:00:30.2]} 29... exd4 {[%clk 0:00:02.7]} 30. Qxd4+ {[%clk 0:00:31.1]}
1-0

[Event "*** Titled Tuesday Blitz"]
[Site "Chess.com"]
[Date "2021.02.02"]
[Round "1"]
[White "LileKoridze"]
[Black "XDPS"]
[Result "0-1"]
[WhiteElo "2380"]
[BlackElo "2711"]
[TimeControl "180+1"]
[EndTime "10:06:48 PST"]
[Termination "XDPS won by resignation"]

1. d4 {[%clk 0:03:00.9]} 1... d5 {[%clk 0:02:59]} 2. c4 {[%clk 0:03:00.7]} 2...
c6 {[%clk 0:02:59.5]} 3. Nf3 {[%clk 0:03:00.4]} 3... Nf6 {[%clk 0:03:00]} 4. Nc3
{[%clk 0:03:00.6]} 4... e6 {[%clk 0:03:00.1]} 5. e3 {[%clk 0:03:00.8]} 5... Nbd7
{[%clk 0:03:00.1]} 6. Bd3 {[%clk 0:03:01]} 6... dxc4 {[%clk 0:03:00.3]} 7. Bxc4
{[%clk 0:03:01.2]} 7... b5 {[%clk 0:03:01.2]} 8. Bd3 {[%clk 0:03:01.7]} 8... a6
{[%clk 0:03:01.9]} 9. O-O {[%clk 0:03:01.8]} 9... c5 {[%clk 0:03:01.2]} 10. dxc5
{[%clk 0:02:54.8]} 10... Nxc5 {[%clk 0:02:56.4]} 11. Bc2 {[%clk 0:02:54.6]}
11... Bb7 {[%clk 0:02:54.2]} 12. Qe2 {[%clk 0:02:49.6]} 12... Be7 {[%clk
0:02:45.6]} 13. Rd1 {[%clk 0:02:45.4]} 13... Qb6 {[%clk 0:02:42.9]} 14. e4
{[%clk 0:02:41.6]} 14... O-O {[%clk 0:02:35.1]} 15. Be3 {[%clk 0:02:40.5]} 15...
Ng4 {[%clk 0:02:33.9]} 16. b4 {[%clk 0:02:31.1]} 16... Nxe3 {[%clk 0:02:33]} 17.
bxc5 {[%clk 0:02:07.5]} 17... Bxc5 {[%clk 0:02:32.5]} 18. fxe3 {[%clk
0:02:07.2]} 18... Bxe3+ {[%clk 0:02:33]} 19. Kh1 {[%clk 0:02:07.5]} 19... Rac8
{[%clk 0:02:33.3]} 20. Rd3 {[%clk 0:02:01.7]} 20... Bf4 {[%clk 0:02:15.6]} 21.
Rf1 {[%clk 0:01:24.9]} 21... Qc5 {[%clk 0:02:12.7]} 22. Bb1 {[%clk 0:01:12.7]}
22... Qb4 {[%clk 0:02:05.1]} 23. Qe1 {[%clk 0:01:01]} 23... Rfd8 {[%clk
0:01:58.1]} 24. Rxd8+ {[%clk 0:00:53]} 24... Rxd8 {[%clk 0:01:59]} 25. Ne2
{[%clk 0:00:48]} 25... Qxe1 {[%clk 0:01:58.3]} 26. Rxe1 {[%clk 0:00:48.6]} 26...
Bc7 {[%clk 0:01:53.7]} 27. Rc1 {[%clk 0:00:39.4]} 27... Bb6 {[%clk 0:01:53.7]}
28. h3 {[%clk 0:00:34.2]} 28... g6 {[%clk 0:01:52.7]} 29. Bc2 {[%clk 0:00:18.2]}
29... Kg7 {[%clk 0:01:48.7]} 30. e5 {[%clk 0:00:14.8]} 30... Bxf3 {[%clk
0:01:38.7]} 31. gxf3 {[%clk 0:00:14.8]} 31... Rd2 {[%clk 0:01:39.6]} 32. Ng3
{[%clk 0:00:11.8]} 32... Bd4 {[%clk 0:01:36.8]} 33. Ne4 {[%clk 0:00:11.7]} 33...
Re2 {[%clk 0:01:36.8]} 34. Bd3 {[%clk 0:00:11.5]} 34... Re3 {[%clk 0:01:37.2]}
35. Bc2 {[%clk 0:00:07]} 35... Bxe5 {[%clk 0:01:37.3]} 36. Kg2 {[%clk
0:00:06.5]} 36... Bb2 {[%clk 0:01:32.6]} 37. Rf1 {[%clk 0:00:05.5]} 37... Bd4
{[%clk 0:01:31.5]} 38. Rd1 {[%clk 0:00:05.4]} 38... Re2+ {[%clk 0:01:31.3]} 39.
Kf1 {[%clk 0:00:06]} 39... Rxc2 {[%clk 0:01:29.8]} 40. Rxd4 {[%clk 0:00:06.3]}
40... Rxa2 {[%clk 0:01:30.7]} 41. Rd7 {[%clk 0:00:06.9]} 41... b4 {[%clk
0:01:25]} 42. Nd6 {[%clk 0:00:07.3]} 42... b3 {[%clk 0:01:22.3]} 43. Rxf7+
{[%clk 0:00:07.1]} 43... Kg8 {[%clk 0:01:21.7]} 44. Rb7 {[%clk 0:00:07]} 44...
b2 {[%clk 0:01:22]} 45. Rb8+ {[%clk 0:00:04.1]} 45... Kg7 {[%clk 0:01:22.2]} 46.
Rb7+ {[%clk 0:00:04.5]} 46... Kh6 {[%clk 0:01:14.4]} 47. Nf7+ {[%clk 0:00:04.9]}
47... Kh5 {[%clk 0:01:14.8]} 48. Ke2 {[%clk 0:00:02.1]} 48... b1=Q+ {[%clk
0:01:14.2]} 0-1

[Event "*** Titled Tuesday Blitz"]
[Site "Chess.com"]
[Date "2021.02.02"]
[Round "1"]
[White "paulrusan"]
[Black "googlegoom"]
[Result "1-0"]
[WhiteElo "2261"]
[BlackElo "2542"]
[TimeControl "180+1"]
[EndTime "10:06:51 PST"]
[Termination "paulrusan won on time"]

1. e4 {[%clk 0:03:00.9]} 1... c5 {[%clk 0:02:59.1]} 2. b4 {[%clk 0:02:59.9]}
2... cxb4 {[%clk 0:02:58.9]} 3. Bb2 {[%clk 0:02:59.9]} 3... e6 {[%clk
0:02:57.8]} 4. a3 {[%clk 0:02:58.7]} 4... Nf6 {[%clk 0:02:56]} 5. e5 {[%clk
0:02:58.9]} 5... Nd5 {[%clk 0:02:56]} 6. axb4 {[%clk 0:02:59.3]} 6... Bxb4
{[%clk 0:02:55.1]} 7. c4 {[%clk 0:02:57.9]} 7... Nb6 {[%clk 0:02:54.5]} 8. Qg4
{[%clk 0:02:57.4]} 8... g6 {[%clk 0:02:54.1]} 9. h4 {[%clk 0:02:56.7]} 9... h5
{[%clk 0:02:53.6]} 10. Qe4 {[%clk 0:02:55.5]} 10... Nc6 {[%clk 0:02:30.8]} 11.
Nf3 {[%clk 0:02:53.8]} 11... d5 {[%clk 0:02:11.2]} 12. exd6 {[%clk 0:02:53]}
12... O-O {[%clk 0:02:11.2]} 13. Ne5 {[%clk 0:02:35.6]} 13... Nxe5 {[%clk
0:01:58.2]} 14. Qxe5 {[%clk 0:02:35.3]} 14... f6 {[%clk 0:01:58.6]} 15. Qe4
{[%clk 0:02:24.9]} 15... Kf7 {[%clk 0:01:21.8]} 16. Bd3 {[%clk 0:02:11.5]} 16...
Rg8 {[%clk 0:01:21]} 17. g4 {[%clk 0:02:03.8]} 17... f5 {[%clk 0:00:59.8]} 18.
gxf5 {[%clk 0:01:49.8]} 18... exf5 {[%clk 0:00:57.6]} 19. Qf4 {[%clk 0:01:43.1]}
19... Bxd6 {[%clk 0:00:53.9]} 20. Qh6 {[%clk 0:01:40.5]} 20... Bf8 {[%clk
0:00:37.4]} 21. Qh7+ {[%clk 0:01:33]} 21... Bg7 {[%clk 0:00:37.5]} 22. Rg1
{[%clk 0:01:21.4]} 22... Qd6 {[%clk 0:00:19.8]} 23. c5 {[%clk 0:01:11.4]} 23...
Qe6+ {[%clk 0:00:16.9]} 24. Kd1 {[%clk 0:01:02.9]} 24... Kf8 {[%clk 0:00:15]}
25. Bxg7+ {[%clk 0:00:40.6]} 25... Rxg7 {[%clk 0:00:15]} 26. Qh8+ {[%clk
0:00:40.9]} 26... Rg8 {[%clk 0:00:12.9]} 27. Qh6+ {[%clk 0:00:41]} 27... Kf7
{[%clk 0:00:11.6]} 28. cxb6 {[%clk 0:00:41]} 28... Bd7 {[%clk 0:00:06.7]} 29.
Nc3 {[%clk 0:00:38.1]} 29... Bc6 {[%clk 0:00:05.4]} 30. Qf4 {[%clk 0:00:30.7]}
30... Rad8 {[%clk 0:00:05.2]} 31. Bc4 {[%clk 0:00:28.5]} 1-0

[Event "*** Titled Tuesday Blitz"]
[Site "Chess.com"]
[Date "2021.02.02"]
[Round "1"]
[White "pheonixking2000"]
[Black "KetiGrant"]
[Result "1-0"]
[WhiteElo "2713"]
[BlackElo "2380"]
[TimeControl "180+1"]
[EndTime "10:06:52 PST"]
[Termination "pheonixking2000 won on time"]

1. d4 {[%clk 0:02:57.5]} 1... Nf6 {[%clk 0:02:59.1]} 2. Bg5 {[%clk 0:02:56.7]}
2... g6 {[%clk 0:02:56.6]} 3. Bxf6 {[%clk 0:02:56.3]} 3... exf6 {[%clk
0:02:57.5]} 4. c4 {[%clk 0:02:56.7]} 4... Bg7 {[%clk 0:02:57.1]} 5. Nc3 {[%clk
0:02:57.2]} 5... f5 {[%clk 0:02:57]} 6. e3 {[%clk 0:02:57.7]} 6... d6 {[%clk
0:02:57]} 7. g3 {[%clk 0:02:58.1]} 7... Nd7 {[%clk 0:02:57.1]} 8. Bg2 {[%clk
0:02:58.2]} 8... Nf6 {[%clk 0:02:56.3]} 9. Nge2 {[%clk 0:02:58.5]} 9... h5
{[%clk 0:02:55.9]} 10. h4 {[%clk 0:02:58.1]} 10... O-O {[%clk 0:02:53.5]} 11.
Qc2 {[%clk 0:02:57.5]} 11... Ng4 {[%clk 0:02:52.2]} 12. Nf4 {[%clk 0:02:51.9]}
12... Re8 {[%clk 0:02:50.8]} 13. O-O-O {[%clk 0:02:51.7]} 13... c6 {[%clk
0:02:46.6]} 14. Rhe1 {[%clk 0:02:50.7]} 14... a5 {[%clk 0:02:37.4]} 15. Kb1
{[%clk 0:02:50.3]} 15... a4 {[%clk 0:02:27.2]} 16. Re2 {[%clk 0:02:42.4]} 16...
Qa5 {[%clk 0:02:21.6]} 17. a3 {[%clk 0:02:42.1]} 17... Bd7 {[%clk 0:01:45.8]}
18. Ka1 {[%clk 0:02:14.5]} 18... Ra7 {[%clk 0:01:37.1]} 19. c5 {[%clk
0:02:02.8]} 19... dxc5 {[%clk 0:01:09.2]} 20. dxc5 {[%clk 0:02:03.7]} 20... Bc8
{[%clk 0:01:00.6]} 21. Na2 {[%clk 0:01:50.7]} 21... Qb5 {[%clk 0:00:46.1]} 22.
Red2 {[%clk 0:01:44.8]} 22... Qa5 {[%clk 0:00:22.8]} 23. Bf1 {[%clk 0:01:15.2]}
23... Ra8 {[%clk 0:00:20.3]} 24. Bc4 {[%clk 0:01:14.8]} 24... Ne5 {[%clk
0:00:18.8]} 25. Be2 {[%clk 0:01:14.1]} 25... Be6 {[%clk 0:00:17.4]} 26. Nxe6
{[%clk 0:01:14.1]} 26... Rxe6 {[%clk 0:00:17.7]} 27. Nb4 {[%clk 0:01:13.8]}
27... Ree8 {[%clk 0:00:16.3]} 28. Ka2 {[%clk 0:01:13.8]} 28... Bf8 {[%clk
0:00:14.9]} 29. f4 {[%clk 0:00:51]} 29... Ng4 {[%clk 0:00:12.8]} 30. Bxg4 {[%clk
0:00:51.4]} 30... fxg4 {[%clk 0:00:11.7]} 31. Nd3 {[%clk 0:00:46.4]} 31... Rxe3
{[%clk 0:00:10.1]} 32. Qc4 {[%clk 0:00:47]} 32... Qb5 {[%clk 0:00:06.8]} 33. Qd4
{[%clk 0:00:45.6]} 33... Qb3+ {[%clk 0:00:05.3]} 34. Kb1 {[%clk 0:00:44.3]}
34... Rae8 {[%clk 0:00:05.8]} 35. Ne5 {[%clk 0:00:43.1]} 35... Bg7 {[%clk
0:00:03.2]} 36. Qd7 {[%clk 0:00:42.2]} 1-0

[Event "*** Titled Tuesday Blitz"]
[Site "Chess.com"]
[Date "2021.02.02"]
[Round "1"]
[White "ChessQueen"]
[Black "Sergienko_Sergey"]
[Result "1/2-1/2"]
[WhiteElo "2721"]
[BlackElo "2392"]
[TimeControl "180+1"]
[EndTime "10:06:53 PST"]
[Termination "Game drawn by agreement"]

1. e4 {[%clk 0:03:00.8]} 1... c5 {[%clk 0:02:58.8]} 2. c3 {[%clk 0:03:00.5]}
2... d5 {[%clk 0:02:57.7]} 3. exd5 {[%clk 0:03:00.5]} 3... Qxd5 {[%clk
0:02:56.2]} 4. d4 {[%clk 0:03:00.9]} 4... Nf6 {[%clk 0:02:54.2]} 5. Nf3 {[%clk
0:03:01.1]} 5... Bg4 {[%clk 0:02:53.9]} 6. Be2 {[%clk 0:03:01.1]} 6... e6 {[%clk
0:02:52.8]} 7. h3 {[%clk 0:03:00.4]} 7... Bh5 {[%clk 0:02:52.2]} 8. c4 {[%clk
0:03:00.8]} 8... Qd8 {[%clk 0:02:47.3]} 9. d5 {[%clk 0:03:00.9]} 9... exd5
{[%clk 0:02:39.7]} 10. cxd5 {[%clk 0:03:00.5]} 10... Bd6 {[%clk 0:02:35.8]} 11.
Nc3 {[%clk 0:02:58.7]} 11... O-O {[%clk 0:02:34.2]} 12. O-O {[%clk 0:02:54.6]}
12... a6 {[%clk 0:02:29]} 13. Bg5 {[%clk 0:02:53.1]} 13... Re8 {[%clk
0:02:19.7]} 14. Re1 {[%clk 0:02:49.5]} 14... Nbd7 {[%clk 0:02:18.5]} 15. Qd2
{[%clk 0:02:32]} 15... Qc7 {[%clk 0:02:08.2]} 16. Rad1 {[%clk 0:02:29.8]} 16...
h6 {[%clk 0:02:03.5]} 17. Be3 {[%clk 0:02:29.2]} 17... b5 {[%clk 0:01:58]} 18.
Nh4 {[%clk 0:02:26.2]} 18... Bxe2 {[%clk 0:01:54.1]} 19. Qxe2 {[%clk 0:02:17.5]}
19... Ne5 {[%clk 0:01:34.6]} 20. b3 {[%clk 0:02:04.8]} 20... Qd7 {[%clk
0:01:19.4]} 21. Qc2 {[%clk 0:02:00.6]} 21... c4 {[%clk 0:01:02.7]} 22. Bd4
{[%clk 0:01:59.4]} 22... Nd3 {[%clk 0:01:02]} 23. Rxe8+ {[%clk 0:01:57.8]} 23...
Nxe8 {[%clk 0:01:00.2]} 24. bxc4 {[%clk 0:01:54.8]} 24... bxc4 {[%clk
0:00:59.8]} 25. Ne4 {[%clk 0:01:54.6]} 25... Rc8 {[%clk 0:00:58.8]} 26. Nxd6
{[%clk 0:01:38.4]} 26... Nxd6 {[%clk 0:00:56.1]} 27. Ba1 {[%clk 0:01:34.1]}
27... Nf5 {[%clk 0:00:53.2]} 28. Nf3 {[%clk 0:01:27.2]} 28... Qxd5 {[%clk
0:00:49.4]} 29. Qc3 {[%clk 0:01:18.6]} 29... f6 {[%clk 0:00:49.3]} 30. Nd2
{[%clk 0:01:10.7]} 30... Nd6 {[%clk 0:00:36.5]} 31. Nxc4 {[%clk 0:00:59.3]}
31... Rxc4 {[%clk 0:00:34.8]} 32. Qxd3 {[%clk 0:00:38.5]} 32... Qxd3 {[%clk
0:00:34.2]} 33. Rxd3 {[%clk 0:00:39.4]} 33... Rc1+ {[%clk 0:00:34.5]} 34. Kh2
{[%clk 0:00:40.1]} 34... Rxa1 {[%clk 0:00:34.3]} 35. Rxd6 {[%clk 0:00:40.7]}
35... Rxa2 {[%clk 0:00:33.1]} 36. Kg3 {[%clk 0:00:41.3]} 36... h5 {[%clk
0:00:29.8]} 37. h4 {[%clk 0:00:41.5]} 37... Kh7 {[%clk 0:00:29.3]} 38. f3 {[%clk
0:00:41.7]} 38... a5 {[%clk 0:00:27]} 39. Ra6 {[%clk 0:00:41.7]} 39... a4 {[%clk
0:00:25.6]} 40. Ra5 {[%clk 0:00:40.9]} 40... Kh6 {[%clk 0:00:22.1]} 41. Kh3
{[%clk 0:00:41]} 41... a3 {[%clk 0:00:21.5]} 42. Kg3 {[%clk 0:00:40.6]} 42...
Kg6 {[%clk 0:00:19.7]} 43. Kh3 {[%clk 0:00:40.5]} 43... Ra1 {[%clk 0:00:17]}
1/2-1/2